lending/lending_fUSD_20250218
["ID","MTS","AMOUNT","RATE_DAILY","PERIOD"]
[353473995,1739872245178,-500.8315923,0.00013698,2]
[353473996,1739872245187,-500.0,0.00013698,2]
[353473998,1739872245197,-515.13,0.00013698,2]
[353474000,1739872245206,-500.0,0.00013698,2]
[353474002,1739872245215,-500.0,0.00013698,2]
[353474004,1739872245224,-702.580154,0.00013698,2]
[353474006,1739872245234,-500.0,0.00013698,2]
[353474009,1739872245244,-1112.82,0.00013698,2]
[353474010,1739872245254,-500.0,0.00013698,2]
[353474012,1739872245263,-500.0,0.00013698,2]
[353474014,1739872245272,-500.0,0.00013698,2]
[353474016,1739872245281,-500.0,0.00013698,2]
[353474018,1739872245291,-500.0,0.00013698,2]
[353474020,1739872245300,-158.723038,0.00013698,2]
[353474022,1739872245311,-500.0,0.00013698,7]
[353474024,1739872245320,-500.0,0.00013698,2]
[353474026,1739872245330,-500.0,0.00013698,2]
[353474027,1739872245339,-1863.5,0.00013698,2]
[353474028,1739872245349,-500.0,0.00013698,2]
[353474029,1739872245358,-503.79492928,0.00013698,2]
[353474030,1739872245367,-500.0,0.00013698,2]
[353474031,1739872245377,-500.0,0.00013698,2]
[353474033,1739872245387,-604.22,0.00013698,2]
[353474034,1739872245396,-506.97202714,0.00013698,2]
[353474035,1739872245405,-500.0,0.00013698,2]
[353474036,1739872245415,-500.0,0.00013698,2]
[353474038,1739872245429,-500.0,0.00013698,2]
[353474040,1739872245439,-510.5,0.00013698,2]
[353474041,1739872245448,-500.0,0.00013698,2]
[353474042,1739872245458,-500.0,0.00013698,2]
[353474043,1739872245467,-500.0,0.00013698,2]
[353474044,1739872245476,-500.0,0.00013698,2]
[353474045,1739872245486,-504.28448593,0.00013698,2]
[353474046,1739872245495,-500.0,0.00013698,2]
[353474047,1739872245504,-514.43877226,0.00013698,2]
[353474048,1739872245514,-500.0,0.00013698,2]
[353474049,1739872245523,-500.0,0.00013698,2]
[353474050,1739872245533,-500.73017758,0.00013698,2]
[353474051,1739872245542,-500.0,0.00013698,2]
[353474052,1739872245551,-500.0,0.00013698,2]
[353474053,1739872245560,-500.0,0.00013698,2]
[353474054,1739872245569,-500.0,0.00013698,2]
[353474055,1739872245579,-467.48776098,0.00013698,2]
[353474056,1739872245588,-500.0,0.00013698,2]
[353474057,1739872245598,-500.0,0.00013698,2]
[353474058,1739872245607,-500.0,0.00013698,2]
[353474059,1739872245616,-500.0,0.00013698,2]
[353474060,1739872245625,-693.9,0.00013698,2]
[353474061,1739872245634,-500.0,0.00013698,2]
[353474062,1739872245644,-502.43440367,0.00013698,2]
[353474063,1739872245653,-500.0,0.00013698,2]
[353474064,1739872245663,-536.66,0.00013698,2]
[353474065,1739872245673,-886.06,0.00013698,2]
[353474066,1739872245682,-933.58,0.00013698,2]
[353474067,1739872245692,-502.31260358,0.00013698,2]
[353474068,1739872245701,-1011.07,0.00013698,2]
[353474069,1739872245711,-500.0,0.00013698,2]
[353474070,1739872245720,-1066.43,0.00013698,2]
[353474071,1739872245730,-500.0,0.00013698,2]
[353474072,1739872245739,-506.30144184,0.00013698,2]
[353474073,1739872245749,-500.0,0.00013698,2]
[353474074,1739872245759,-500.50704533,0.00013698,2]
[353474075,1739872245769,-782.22,0.00013698,2]
[353474076,1739872245778,-500.0,0.00013698,2]
[353474077,1739872245787,-500.0,0.00013698,2]
[353474078,1739872245797,-503.73941127,0.00013698,2]
[353474079,1739872245807,-500.0,0.00013698,2]
[353474080,1739872245816,-500.0,0.00013698,2]
[353474081,1739872245825,-500.0,0.00013698,2]
[353474082,1739872245834,-500.0,0.00013698,2]
[353474083,1739872245844,-1330.9,0.00013698,2]
[353474084,1739872245853,-500.0,0.00013698,2]
[353474085,1739872245863,-421.8696717,0.00013698,2]
[353474086,1739872245872,-500.0,0.00013698,2]
[353474087,1739872245882,-836.31,0.00013698,2]
[353474088,1739872245892,-939.6,0.00013698,2]
[353474089,1739872245905,-500.0,0.00013698,2]
[353474090,1739872245914,-500.0,0.00013698,2]
[353474091,1739872245926,-500.0,0.00013698,2]
[353474092,1739872245936,-308.28037757,0.00013698,2]
[353474093,1739872245946,-500.99225348,0.00013698,2]
[353474094,1739872245955,-500.0,0.00013698,2]
[353474095,1739872245965,-500.0,0.00013698,2]
[353474096,1739872245974,-598.45,0.00013698,2]
[353474097,1739872245984,-500.0,0.00013698,2]
[353474099,1739872245994,-500.0,0.00013698,2]
[353474101,1739872246004,-858.55,0.00013698,2]
[353474103,1739872246013,-500.0,0.00013698,2]
[353474105,1739872246022,-500.0,0.00013698,2]
[353474106,1739872246031,-500.0,0.00013698,2]
[353474107,1739872246040,-500.63071385,0.00013698,2]
[353474108,1739872246050,-500.0,0.00013698,2]
[353474109,1739872246059,-500.0,0.00013698,2]
[353474110,1739872246068,-476.77500225,0.00013698,2]
[353474111,1739872246078,-500.0,0.00013698,2]
[353474112,1739872246087,-974.94,0.00013698,2]
[353474113,1739872246096,-500.0,0.00013698,2]
[353474114,1739872246105,-500.0,0.00013698,2]
[353474115,1739872246114,-1766.73,0.00013698,2]
[353474116,1739872246123,-497.09635513,0.00013698,2]
[353474117,1739872246132,-500.0,0.00013698,2]
[353474118,1739872246141,-506.45798647,0.00013698,2]
[353474119,1739872246151,-500.0,0.00013698,2]
[353474120,1739872246160,-501.84900822,0.00013698,2]
[353474121,1739872246170,-500.0,0.00013698,2]
[353474122,1739872246179,-500.0,0.00013698,2]
[353474123,1739872246188,-500.0,0.00013698,2]
[353474124,1739872246197,-500.0,0.00013698,2]
[353474125,1739872246207,-500.0,0.00013698,2]
[353474126,1739872246216,-707.34,0.00013698,2]
[353474127,1739872246225,-500.0,0.00013698,2]
[353474128,1739872246234,-500.0,0.00013698,2]
[353474129,1739872246244,-500.0,0.00013698,2]
[353474130,1739872246254,-500.0,0.00013698,2]
[353474131,1739872246263,-500.0,0.00013698,2]
[353474132,1739872246272,-500.0,0.00013698,2]
[353474133,1739872246281,-500.0,0.00013698,2]
[353474134,1739872246290,-584.1,0.00013698,2]
[353474135,1739872246299,-543.64,0.00013698,2]
[353474136,1739872246310,-1248.75,0.00013698,2]
[353474137,1739872246319,-696.59,0.00013698,2]
[353474138,1739872246328,-2474.78,0.00013698,2]
[353474139,1739872246337,-500.0,0.00013698,2]
[353474140,1739872246346,-1606.64,0.00013698,2]
[353474141,1739872246355,-500.0,0.00013698,2]
[353474142,1739872246364,-953.81,0.00013698,2]
[353474143,1739872246374,-500.0,0.00013698,2]
[353474144,1739872246383,-1126.83,0.00013698,2]
[353474145,1739872246393,-682.43,0.00013698,2]
[353474146,1739872246500,-500.0,0.00013698,2]
[353474147,1739872246510,-500.0,0.00013698,2]
[353474148,1739872246519,-500.0,0.00013698,2]
[353474149,1739872246529,-500.0,0.00013698,2]
[353474150,1739872246538,-500.0,0.00013698,2]
[353474151,1739872246547,-645.50370219,0.00013698,2]
[353474152,1739872246557,-523.28,0.00013698,2]
[353474153,1739872246567,-635.0,0.00013698,2]
[353474154,1739872246576,-500.0,0.00013698,2]
[353474155,1739872246585,-500.0,0.00013698,2]
[353474156,1739872246594,-500.0,0.00013698,2]
[353474157,1739872246604,-500.0,0.00013698,2]
[353474158,1739872246614,-781.07,0.00013698,2]
[353474159,1739872246623,-500.0,0.00013698,2]
[353474160,1739872246632,-500.7750505,0.00013698,2]
[353474162,1739872246642,-500.0,0.00013698,2]
[353474164,1739872246651,-500.0,0.00013698,2]
[353474165,1739872246661,-1037.7,0.00013698,2]
[353474166,1739872246672,-420.59425143,0.00013698,2]
[353474167,1739872246681,-500.0,0.00013698,2]
[353474168,1739872246690,-500.0,0.00013698,2]
[353474169,1739872246700,-529.77053954,0.00013698,2]
[353474170,1739872246710,-500.0,0.00013698,2]
[353474171,1739872246720,-500.0,0.00013698,2]
[353474172,1739872246730,-500.0,0.00013698,2]
[353474173,1739872246739,-500.0,0.00013698,2]
[353474174,1739872246748,-500.0,0.00013698,2]
[353474175,1739872246758,-500.0,0.00013698,2]
[353474176,1739872246767,-500.0,0.00013698,2]
[353474177,1739872246776,-500.0,0.00013698,2]
[353474178,1739872246787,-739.28,0.00013698,2]
[353474179,1739872246796,-503.28,0.00013698,2]
[353474180,1739872246806,-500.0,0.00013698,2]
[353474181,1739872246816,-504.15764209,0.00013698,2]
[353474182,1739872246825,-500.0,0.00013698,2]
[353474183,1739872246835,-500.0,0.00013698,2]
[353474184,1739872246844,-992.84,0.00013698,2]
[353474185,1739872246853,-500.0,0.00013698,2]
[353474186,1739872246863,-805.36,0.00013698,2]
[353474187,1739872246873,-501.58441212,0.00013698,2]
[353474188,1739872246883,-500.0,0.00013698,2]
[353474189,1739872246892,-500.0,0.00013698,2]
[353474190,1739872246905,-500.0,0.00013698,2]
[353474191,1739872246915,-741.7,0.00013698,2]
[353474192,1739872246926,-164.491957,0.00013698,2]
[353474193,1739872246935,-500.0,0.00013698,2]
[353474194,1739872246946,-500.0,0.00013698,2]
[353474195,1739872246956,-500.0,0.00013698,2]
[353474196,1739872246965,-500.0,0.00013698,2]
[353474197,1739872246975,-500.0,0.00013698,2]
[353474198,1739872246986,-500.0,0.00013698,2]
[353474199,1739872246995,-500.0,0.00013698,2]
[353474200,1739872247004,-1249.99,0.00013698,2]
[353474201,1739872247014,-500.97192539,0.00013698,2]
[353474202,1739872247024,-500.0,0.00013698,2]
[353474203,1739872247034,-1774.34,0.00013698,2]
[353474204,1739872247043,-500.0,0.00013698,2]
[353474205,1739872247053,-500.0,0.00013698,2]
[353474206,1739872247063,-812.46,0.00013698,2]
[353474207,1739872247073,-896.83,0.00013698,2]
[353474208,1739872247082,-500.0,0.00013698,2]
[353474209,1739872247092,-500.0,0.00013698,2]
[353474210,1739872247101,-500.0,0.00013698,2]
[353474211,1739872247111,-657.29,0.00013698,2]
[353474212,1739872247120,-500.0,0.00013698,2]
[353474213,1739872247130,-521.94131617,0.00013698,2]
[353474214,1739872247140,-500.0,0.00013698,2]
[353474215,1739872247152,-500.0,0.00013698,2]
[353474216,1739872247166,-429.13935607,0.00013698,2]
[353474217,1739872247184,-500.0,0.00013698,2]
[353474218,1739872247208,-500.0,0.00013698,2]
[353474219,1739872247229,-500.0,0.00013698,2]
[353474220,1739872247295,-500.0,0.00013698,2]
[353474221,1739872247394,-971.61,0.00013698,2]
[353474222,1739872247509,-500.0,0.00013698,2]
[353474223,1739872247632,-500.0,0.00013698,2]
[353474224,1739872247761,-1232.04,0.00013698,2]
[353474225,1739872247876,-1704.38,0.00013698,2]
[353474226,1739872248034,-500.0,0.00013698,2]
[353474227,1739872248150,-500.0,0.00013698,2]
[353474228,1739872248240,-502.05816832,0.00013698,2]
[353474229,1739872248302,-500.0,0.00013698,2]
[353474230,1739872248320,-702.31,0.00013698,2]
[353474231,1739872248336,-976.65,0.00013698,2]
[353474232,1739872248353,-619.66,0.00013698,2]
[353474233,1739872248372,-500.0,0.00013698,2]
[353474234,1739872248387,-500.0,0.00013698,2]
[353474235,1739872248403,-719.02,0.00013698,2]
[353474236,1739872248420,-500.0,0.00013698,2]
[353474237,1739872248436,-500.0,0.00013698,2]
[353474238,1739872248453,-508.77071613,0.00013698,2]
[353474239,1739872248469,-500.0,0.00013698,2]
[353474240,1739872248485,-500.0,0.00013698,2]
[353474241,1739872248501,-500.0,0.00013698,2]
[353474242,1739872248517,-500.0,0.00013698,2]
[353474243,1739872248532,-500.0,0.00013698,2]
[353474244,1739872248548,-548.6,0.00013698,2]
[353474245,1739872248563,-500.0,0.00013698,2]
[353474246,1739872248578,-2856.63,0.00013698,2]
[353474247,1739872248594,-500.0,0.00013698,2]
[353474248,1739872248613,-500.0,0.00013698,2]
[353474249,1739872248629,-2609.58,0.00013698,2]
[353474250,1739872248645,-500.0,0.00013698,2]
[353474251,1739872248661,-500.0,0.00013698,2]
[353474252,1739872248676,-500.0,0.00013698,2]
[353474253,1739872248692,-500.0,0.00013698,2]
[353474254,1739872248708,-500.0,0.00013698,2]
[353474255,1739872248724,-1000.0,0.00013698,2]
[353474256,1739872248740,-500.0,0.00013698,2]
[353474257,1739872248756,-505.30396959,0.00013698,2]
[353474258,1739872248774,-500.0,0.00013698,2]
[353474259,1739872248790,-500.0,0.00013698,2]
[353474260,1739872248807,-500.0,0.00013698,2]
[353474261,1739872248822,-500.0,0.00013698,2]
[353474262,1739872248839,-500.0,0.00013698,2]
[353474263,1739872248856,-500.0,0.00013698,2]
[353474264,1739872248872,-500.0,0.00013698,2]
[353474265,1739872248889,-500.0,0.00013698,2]
[353474266,1739872248907,-500.0,0.00013698,2]
[353474267,1739872248924,-501.47646195,0.00013698,2]
[353474268,1739872248941,-590.44,0.00013698,2]
[353474269,1739872248959,-500.63025074,0.00013698,2]
[353474270,1739872248977,-500.0,0.00013698,2]
[353474271,1739872248994,-500.0,0.00013698,2]
[353474272,1739872249012,-500.0,0.00013698,2]
[353474273,1739872249029,-500.0,0.00013698,2]
[353474274,1739872249050,-841.8,0.00013698,2]
[353474275,1739872249067,-727.6,0.00013698,2]
[353474276,1739872249086,-500.0,0.00013698,2]
[353474277,1739872249104,-665.21,0.00013698,2]
[353474278,1739872249122,-500.0,0.00013698,2]
[353474279,1739872249139,-500.0,0.00013698,2]
[353474280,1739872249157,-500.0,0.00013698,2]
[353474281,1739872249178,-500.0,0.00013698,2]
[353474282,1739872249198,-500.0,0.00013698,2]
[353474283,1739872249216,-500.0,0.00013698,2]
[353474284,1739872249234,-500.0,0.00013698,2]
[353474285,1739872249252,-818.77,0.00013698,2]
[353474286,1739872249269,-500.0,0.00013698,2]
[353474287,1739872249449,-514.88524554,0.00013698,2]
[353474288,1739872249466,-500.0,0.00013698,2]
[353474289,1739872249476,-500.0,0.00013698,2]
[353474290,1739872249486,-500.0,0.00013698,2]
[353474291,1739872249496,-551.49,0.00013698,2]
[353474292,1739872249506,-500.0,0.00013698,2]
[353474293,1739872249517,-926.1,0.00013698,2]
[353474294,1739872249527,-500.0,0.00013698,2]
[353474295,1739872249538,-500.0,0.00013698,2]
[353474296,1739872249549,-500.0,0.00013698,2]
[353474297,1739872249559,-500.0,0.00013698,2]
[353474298,1739872249569,-500.0,0.00013698,2]
[353474299,1739872249580,-1712.2,0.00013698,2]
[353474300,1739872249591,-500.0,0.00013698,2]
[353474301,1739872249602,-500.0,0.00013698,2]
[353474302,1739872249613,-500.0,0.00013698,2]
[353474303,1739872249623,-500.0,0.00013698,2]
[353474304,1739872249634,-500.0,0.00013698,2]
[353474305,1739872249645,-503.55074354,0.00013698,2]
[353474306,1739872249654,-504.60794476,0.00013698,2]
[353474307,1739872249664,-500.0,0.00013698,2]
[353474308,1739872249677,-500.0,0.00013698,2]
[353474309,1739872249687,-500.0,0.00013698,2]
[353474310,1739872249697,-538.79289138,0.00013698,2]
[353474311,1739872249709,-500.0,0.00013698,2]
[353474312,1739872249719,-500.0,0.00013698,2]
[353474313,1739872249730,-500.0,0.00013698,2]
[353474314,1739872249740,-623.41,0.00013698,2]
[353474315,1739872249749,-500.0,0.00013698,2]
[353474316,1739872249759,-500.0,0.00013698,2]
[353474317,1739872249769,-500.0,0.00013698,2]
[353474318,1739872249780,-500.0,0.00013698,2]
[353474319,1739872249791,-500.0,0.00013698,2]
[353474320,1739872249800,-500.0,0.00013698,2]
[353474321,1739872249811,-594.16,0.00013698,2]
[353474322,1739872249821,-500.0,0.00013698,2]
[353474323,1739872249832,-500.0,0.00013698,2]
[353474324,1739872249843,-1116.12,0.00013698,2]
[353474325,1739872249853,-500.0,0.00013698,2]
[353474326,1739872249864,-500.0,0.00013698,2]
[353474327,1739872249874,-1171.66,0.00013698,2]
[353474328,1739872249885,-504.7534774,0.00013698,2]
[353474329,1739872249896,-500.0,0.00013698,2]
[353474330,1739872249909,-500.0,0.00013698,2]
[353474331,1739872249920,-500.0,0.00013698,2]
[353474332,1739872249931,-500.0,0.00013698,2]
[353474333,1739872249942,-500.0,0.00013698,2]
[353474334,1739872249952,-500.0,0.00013698,2]
[353474335,1739872249962,-500.0,0.00013698,2]
[353474336,1739872249972,-500.0,0.00013698,2]
[353474337,1739872249984,-500.0,0.00013698,2]
[353474338,1739872249995,-500.0,0.00013698,2]
[353474339,1739872250006,-500.0,0.00013698,2]
[353474340,1739872250017,-500.0,0.00013698,2]
[353474341,1739872250026,-500.0,0.00013698,2]
[353474342,1739872250037,-500.0,0.00013698,2]
[353474343,1739872250046,-500.0,0.00013698,2]
[353474344,1739872250056,-502.32210144,0.00013698,2]
[353474345,1739872250066,-500.0,0.00013698,2]
[353474346,1739872250075,-508.35606806,0.00013698,2]
[353474347,1739872250085,-500.0,0.00013698,2]
[353474348,1739872250096,-500.0,0.00013698,2]
[353474349,1739872250107,-500.0,0.00013698,2]
[353474350,1739872250118,-508.99396842,0.00013698,2]
[353474351,1739872250129,-516.14047387,0.00013698,2]
[353474352,1739872250140,-500.0,0.00013698,2]
[353474353,1739872250151,-503.21017525,0.00013698,2]
[353474354,1739872250161,-498.7512212,0.00013698,2]
[353474355,1739872250172,-500.0,0.00013698,2]
[353474356,1739872250184,-500.0,0.00013698,2]
[353474357,1739872250194,-500.0,0.00013698,2]
[353474358,1739872250204,-500.0,0.00013698,2]
[353474359,1739872250214,-654.27,0.00013698,2]
[353474360,1739872250224,-500.0,0.00013698,2]
[353474361,1739872250234,-500.0,0.00013698,2]
[353474362,1739872250244,-500.44786982,0.00013698,2]
[353474363,1739872250253,-500.0,0.00013698,2]
[353474364,1739872250263,-500.0,0.00013698,2]
[353474365,1739872250274,-500.0,0.00013698,2]
[353474366,1739872250284,-501.55065042,0.00013698,2]
[353474367,1739872250295,-500.0,0.00013698,2]
[353474368,1739872250304,-500.0,0.00013698,2]
[353474369,1739872250315,-513.40378075,0.00013698,2]
[353474370,1739872250325,-500.0,0.00013698,2]
[353474371,1739872250335,-500.0,0.00013698,2]
[353474372,1739872250346,-500.0,0.00013698,2]
[353474373,1739872250355,-500.0,0.00013698,2]
[353474374,1739872250366,-846.58,0.00013698,2]
[353474375,1739872250376,-501.89295797,0.00013698,2]
[353474376,1739872250386,-500.0,0.00013698,2]
[353474377,1739872250396,-500.0,0.00013698,2]
[353474378,1739872250405,-501.97998733,0.00013698,2]
[353474379,1739872250416,-500.0,0.00013698,2]
[353474380,1739872250426,-500.0,0.00013698,2]
[353474381,1739872250436,-500.0,0.00013698,2]
[353474382,1739872250445,-500.0,0.00013698,2]
[353474383,1739872250455,-500.0,0.00013698,2]
[353474384,1739872250464,-500.0,0.00013698,2]
[353474385,1739872250473,-500.0,0.00013698,2]
[353474386,1739872250483,-500.0,0.00013698,2]
[353474387,1739872250492,-500.0,0.00013698,2]
[353474388,1739872250502,-503.14078193,0.00013698,2]
[353474389,1739872250512,-500.0,0.00013698,2]
[353474390,1739872250521,-500.0,0.00013698,2]
[353474391,1739872250530,-500.0,0.00013698,2]
[353474392,1739872250539,-500.0,0.00013698,2]
[353474393,1739872250549,-500.0,0.00013698,2]
[353474394,1739872250558,-500.0,0.00013698,2]
[353474395,1739872250567,-500.0,0.00013698,2]
[353474396,1739872250577,-500.0,0.00013698,2]
[353474397,1739872250586,-500.0,0.00013698,2]
[353474398,1739872250595,-500.0,0.00013698,2]
[353474399,1739872250605,-501.36139161,0.00013698,2]
[353474400,1739872250615,-500.0,0.00013698,2]
[353474401,1739872250624,-500.76833599,0.00013698,2]
[353474402,1739872250633,-500.0,0.00013698,2]
[353474403,1739872250643,-500.0,0.00013698,2]
[353474404,1739872250652,-500.0,0.00013698,2]
[353474405,1739872250661,-500.0,0.00013698,2]
[353474406,1739872250671,-500.0,0.00013698,2]
[353474407,1739872250681,-500.0,0.00013698,2]
[353474408,1739872250691,-500.0,0.00013698,2]
[353474409,1739872250700,-500.0,0.00013698,2]
[353474410,1739872250709,-500.0,0.00013698,2]
[353474411,1739872250718,-618.85,0.00013698,2]
[353474412,1739872250728,-500.0,0.00013698,2]
[353474413,1739872250737,-500.0,0.00013698,2]
[353474414,1739872250746,-500.0,0.00013698,2]
[353474415,1739872250755,-500.0,0.00013698,2]
[353474416,1739872250763,-500.0,0.00013698,2]
[353474417,1739872250773,-500.0,0.00013698,2]
[353474418,1739872250782,-500.0,0.00013698,2]
[353474419,1739872250792,-500.0,0.00013698,2]
[353474420,1739872250801,-500.0,0.00013698,2]
[353474421,1739872250811,-1074.37,0.00013698,2]
[353474422,1739872250820,-500.0,0.00013698,2]
[353474423,1739872250830,-500.0,0.00013698,2]
[353474424,1739872250839,-517.74138882,0.00013698,2]
[353474425,1739872250849,-500.0,0.00013698,2]
[353474426,1739872250858,-500.0,0.00013698,2]
[353474427,1739872250867,-500.0,0.00013698,2]
[353474428,1739872250876,-500.0,0.00013698,2]
[353474429,1739872250886,-500.0,0.00013698,2]
[353474430,1739872250896,-228.83300048,0.00013698,2]
[353474431,1739872250909,-501.24545835,0.00013698,2]
[353474432,1739872250919,-500.0,0.00013698,2]
[353474433,1739872250928,-500.0,0.00013698,2]
[353474434,1739872250939,-501.55174344,0.00013698,2]
[353474435,1739872250948,-501.22403847,0.00013698,2]
[353474436,1739872250958,-500.0,0.00013698,2]
[353474437,1739872250967,-500.0,0.00013698,2]
[353474438,1739872250979,-500.0,0.00013698,2]
[353474439,1739872250988,-500.0,0.00013698,2]
[353474440,1739872250998,-500.0,0.00013698,2]
[353474441,1739872251007,-500.0,0.00013698,2]
[353474442,1739872251017,-500.40962855,0.00013698,2]
[353474443,1739872251026,-500.0,0.00013698,2]
[353474444,1739872251035,-500.0,0.00013698,2]
[353474445,1739872251044,-500.0,0.00013698,2]
[353474446,1739872251054,-593.23,0.00013698,2]
[353474447,1739872251063,-500.0,0.00013698,2]
[353474448,1739872251073,-500.0,0.00013698,2]
[353474449,1739872251083,-689.99,0.00013698,2]
[353474450,1739872251092,-500.0,0.00013698,2]
[353474451,1739872251102,-500.0,0.00013698,2]
[353474452,1739872251111,-500.00082972,0.00013698,2]
[353474453,1739872251120,-500.0,0.00013698,2]
[353474454,1739872251129,-502.02734109,0.00013698,2]
[353474455,1739872251139,-504.48956043,0.00013698,2]
[353474456,1739872251149,-500.0,0.00013698,2]
[353474457,1739872251158,-500.0,0.00013698,2]
[353474458,1739872251168,-511.37,0.00013698,2]
[353474459,1739872251178,-782.28,0.00013698,2]
[353474460,1739872251187,-500.0,0.00013698,2]
[353474461,1739872251197,-502.88348373,0.00013698,2]
[353474462,1739872251206,-503.29113981,0.00013698,2]
[353474463,1739872251216,-500.0,0.00013699,2]
[353474464,1739872251225,-500.0,0.00013699,2]
[353474465,1739872251234,-500.0,0.00013699,2]
[353474466,1739872251244,-500.0,0.00013699,2]
[353474467,1739872251254,-10045.7,0.00013699,2]
[353474468,1739872251263,-10538.45,0.00013699,2]
[353474469,1739872251272,-150.0,0.00013699,2]
[353474470,1739872251281,-188.05,0.00013699,2]
[353474471,1739872251291,-200.0,0.00013699,2]
[353474472,1739872251300,-500.0,0.00013699,2]
[353474473,1739872251309,-486.92,0.000137,2]
[353474474,1739872251318,-321.9242,0.000137,2]
[353474475,1739872251328,-321.9242,0.000137,2]
[353474476,1739872251337,-169.5737,0.000137,2]
[353474477,1739872251347,-169.5737,0.000137,2]
[353474478,1739872251356,-635.0,0.00013725,2]
[353474479,1739872251366,-635.0,0.00013753,2]
[353474480,1739872251375,-300.0,0.00013779,2]
[353474481,1739872251385,-744.28,0.00013779,2]
[353474482,1739872251395,-744.28,0.00013779,2]
[353474483,1739872251404,-744.28,0.00013779,2]
[353474484,1739872251414,-1448.11,0.00013779,2]
[353474485,1739872251424,-1448.11,0.00013779,2]
[353474486,1739872251434,-500.0,0.00013779,2]
[353474487,1739872251443,-500.0,0.00013779,2]
[353474488,1739872251452,-313.89740163,0.00013779,2]
[353474489,1739872251461,-500.0,0.0001378,2]
[353474490,1739872251471,-500.0,0.0001378,2]
[353474491,1739872251480,-500.0,0.0001378,2]
[353474492,1739872251490,-505.2120393,0.0001378,2]
[353474493,1739872251499,-500.0,0.0001378,2]
[353474494,1739872251508,-217.7165737,0.0001378,2]
[353474495,1739872251518,-502.26444905,0.0001378,2]
[353474496,1739872251527,-500.0,0.0001378,2]
[353474497,1739872251537,-504.76349002,0.0001378,2]
[353474498,1739872251546,-500.0,0.0001378,2]
[353474499,1739872251556,-500.0,0.0001378,2]
[353474500,1739872251565,-501.63373819,0.0001378,2]
[353474501,1739872251574,-500.0,0.0001378,2]
[353474502,1739872251584,-500.0,0.0001378,2]
[353474503,1739872251593,-500.0,0.0001378,2]
[353474504,1739872251603,-500.66384183,0.0001378,2]
[353474505,1739872251612,-501.76152816,0.0001378,2]
[353474506,1739872251735,-500.0,0.0001378,2]
[353474507,1739872251744,-500.0,0.0001378,2]
[353474508,1739872251754,-405.96935914,0.0001378,2]
[353474509,1739872251763,-500.0,0.0001378,2]
[353474510,1739872251772,-500.0,0.0001378,2]
[353474511,1739872251781,-500.0,0.0001378,2]
[353474512,1739872251791,-242.05863298,0.0001378,2]
[353474513,1739872251800,-500.0,0.0001378,2]
[353474514,1739872251810,-500.0,0.0001378,2]
[353474515,1739872251819,-501.18018246,0.0001378,2]
[353474516,1739872251828,-500.79848981,0.0001378,2]
[353474517,1739872251837,-500.0,0.0001378,2]
[353474518,1739872251847,-500.0,0.0001378,2]